{"text_format":"3","workbook":"xlsx","n_sheets":2,"sheets":["Inventaire Équipement","Paramètres"],"not_rendered":{"defined_names":4},"read":"whole","date_system":"1900"}

{"sheet":"Inventaire Équipement","index":0,"n_rows":35,"n_cols":6,"rows_kept":35,"merged":[[0,1,2,2],[0,4,0,5]]}
[]
[{"$nulls":4},"Surligner les éléments antérieurs à :"]
[{"$nulls":4},4]
[]
[null,"CODE MATÉRIEL","NOM DE L’ÉLÉMENT","AFFECTÉ À","DATE DE DÉLIVRANCE","ÂGE DES ÉLÉMENTS"]
[null,"ÉLÉMENT0001","chaise","Employé 1",{"$f":"TODAY()-25","v":"2012-10-28"},{"$f":"IF(tblInventaireÉquipement[[#This Row],[DATE DE DÉLIVRANCE]]<>\"\",TODAY()-tblInventaireÉquipement[[#This Row],[DATE DE DÉLIVRANCE]],\"\")","v":{"v":25,"d":"25 jours"}}]
[null,"ÉLÉMENT0002","imprimante laser","Employé 2",{"$f":"TODAY()-479","v":"2011-08-01"},{"$f":"IF(tblInventaireÉquipement[[#This Row],[DATE DE DÉLIVRANCE]]<>\"\",TODAY()-tblInventaireÉquipement[[#This Row],[DATE DE DÉLIVRANCE]],\"\")","v":{"v":479,"d":"479 jours"}}]
[null,"ÉLÉMENT0003","scanner","Employé 3",{"$f":"TODAY()-177","v":"2012-05-29"},{"$f":"IF(tblInventaireÉquipement[[#This Row],[DATE DE DÉLIVRANCE]]<>\"\",TODAY()-tblInventaireÉquipement[[#This Row],[DATE DE DÉLIVRANCE]],\"\")","v":{"v":177,"d":"177 jours"}}]
[null,"ÉLÉMENT0004","imprimante laser","Employé 7",{"$f":"TODAY()-18","v":"2012-11-04"},{"$f":"IF(tblInventaireÉquipement[[#This Row],[DATE DE DÉLIVRANCE]]<>\"\",TODAY()-tblInventaireÉquipement[[#This Row],[DATE DE DÉLIVRANCE]],\"\")","v":{"v":18,"d":"18 jours"}}]
[null,"ÉLÉMENT0005","cafetière","Employé 20",{"$f":"TODAY()-227","v":"2012-04-09"},{"$f":"IF(tblInventaireÉquipement[[#This Row],[DATE DE DÉLIVRANCE]]<>\"\",TODAY()-tblInventaireÉquipement[[#This Row],[DATE DE DÉLIVRANCE]],\"\")","v":{"v":227,"d":"227 jours"}}]
[null,"ÉLÉMENT0006","scanner","Employé 14",{"$f":"TODAY()-50","v":"2012-10-03"},{"$f":"IF(tblInventaireÉquipement[[#This Row],[DATE DE DÉLIVRANCE]]<>\"\",TODAY()-tblInventaireÉquipement[[#This Row],[DATE DE DÉLIVRANCE]],\"\")","v":{"v":50,"d":"50 jours"}}]
[null,"ÉLÉMENT0007","table","Employé 4",{"$f":"TODAY()-120","v":"2012-07-25"},{"$f":"IF(tblInventaireÉquipement[[#This Row],[DATE DE DÉLIVRANCE]]<>\"\",TODAY()-tblInventaireÉquipement[[#This Row],[DATE DE DÉLIVRANCE]],\"\")","v":{"v":120,"d":"120 jours"}}]
[null,"ÉLÉMENT0008","photocopieuse","Employé 12",{"$f":"TODAY()-499","v":"2011-07-12"},{"$f":"IF(tblInventaireÉquipement[[#This Row],[DATE DE DÉLIVRANCE]]<>\"\",TODAY()-tblInventaireÉquipement[[#This Row],[DATE DE DÉLIVRANCE]],\"\")","v":{"v":499,"d":"499 jours"}}]
[null,"ÉLÉMENT0009","écran supplémentaire","Employé 8",{"$f":"TODAY()-30","v":"2012-10-23"},{"$f":"IF(tblInventaireÉquipement[[#This Row],[DATE DE DÉLIVRANCE]]<>\"\",TODAY()-tblInventaireÉquipement[[#This Row],[DATE DE DÉLIVRANCE]],\"\")","v":{"v":30,"d":"30 jours"}}]
[null,"ÉLÉMENT0010","tableau blanc","Employé 19",{"$f":"TODAY()-50","v":"2012-10-03"},{"$f":"IF(tblInventaireÉquipement[[#This Row],[DATE DE DÉLIVRANCE]]<>\"\",TODAY()-tblInventaireÉquipement[[#This Row],[DATE DE DÉLIVRANCE]],\"\")","v":{"v":50,"d":"50 jours"}}]
[null,"ÉLÉMENT0011","photocopieuse","Employé 12",{"$f":"TODAY()-450","v":"2011-08-30"},{"$f":"IF(tblInventaireÉquipement[[#This Row],[DATE DE DÉLIVRANCE]]<>\"\",TODAY()-tblInventaireÉquipement[[#This Row],[DATE DE DÉLIVRANCE]],\"\")","v":{"v":450,"d":"450 jours"}}]
[null,"ÉLÉMENT0012","papier à lettres","Employé 18",{"$f":"TODAY()-420","v":"2011-09-29"},{"$f":"IF(tblInventaireÉquipement[[#This Row],[DATE DE DÉLIVRANCE]]<>\"\",TODAY()-tblInventaireÉquipement[[#This Row],[DATE DE DÉLIVRANCE]],\"\")","v":{"v":420,"d":"420 jours"}}]
[null,"ÉLÉMENT0013","écran supplémentaire","Employé 8",{"$f":"TODAY()-250","v":"2012-03-17"},{"$f":"IF(tblInventaireÉquipement[[#This Row],[DATE DE DÉLIVRANCE]]<>\"\",TODAY()-tblInventaireÉquipement[[#This Row],[DATE DE DÉLIVRANCE]],\"\")","v":{"v":250,"d":"250 jours"}}]
[null,"ÉLÉMENT0014","cafetière","Employé 9",{"$f":"TODAY()-45","v":"2012-10-08"},{"$f":"IF(tblInventaireÉquipement[[#This Row],[DATE DE DÉLIVRANCE]]<>\"\",TODAY()-tblInventaireÉquipement[[#This Row],[DATE DE DÉLIVRANCE]],\"\")","v":{"v":45,"d":"45 jours"}}]
[null,"ÉLÉMENT0015","papier à lettres","Employé 13",{"$f":"TODAY()-502","v":"2011-07-09"},{"$f":"IF(tblInventaireÉquipement[[#This Row],[DATE DE DÉLIVRANCE]]<>\"\",TODAY()-tblInventaireÉquipement[[#This Row],[DATE DE DÉLIVRANCE]],\"\")","v":{"v":502,"d":"502 jours"}}]
[null,"ÉLÉMENT0016","scanner","Employé 1",{"$f":"TODAY()-350","v":"2011-12-08"},{"$f":"IF(tblInventaireÉquipement[[#This Row],[DATE DE DÉLIVRANCE]]<>\"\",TODAY()-tblInventaireÉquipement[[#This Row],[DATE DE DÉLIVRANCE]],\"\")","v":{"v":350,"d":"350 jours"}}]
[null,"ÉLÉMENT0017","photocopieuse","Employé 19",{"$f":"TODAY()-125","v":"2012-07-20"},{"$f":"IF(tblInventaireÉquipement[[#This Row],[DATE DE DÉLIVRANCE]]<>\"\",TODAY()-tblInventaireÉquipement[[#This Row],[DATE DE DÉLIVRANCE]],\"\")","v":{"v":125,"d":"125 jours"}}]
[null,"ÉLÉMENT0018","tableau blanc","Employé 15",{"$f":"TODAY()-90","v":"2012-08-24"},{"$f":"IF(tblInventaireÉquipement[[#This Row],[DATE DE DÉLIVRANCE]]<>\"\",TODAY()-tblInventaireÉquipement[[#This Row],[DATE DE DÉLIVRANCE]],\"\")","v":{"v":90,"d":"90 jours"}}]
[null,"ÉLÉMENT0019","chaise","Employé 16",{"$f":"TODAY()-730","v":"2010-11-23"},{"$f":"IF(tblInventaireÉquipement[[#This Row],[DATE DE DÉLIVRANCE]]<>\"\",TODAY()-tblInventaireÉquipement[[#This Row],[DATE DE DÉLIVRANCE]],\"\")","v":{"v":730,"d":"730 jours"}}]
[null,"ÉLÉMENT0020","chiffon à poussière (1 lot)","Employé 3",{"$f":"TODAY()-540","v":"2011-06-01"},{"$f":"IF(tblInventaireÉquipement[[#This Row],[DATE DE DÉLIVRANCE]]<>\"\",TODAY()-tblInventaireÉquipement[[#This Row],[DATE DE DÉLIVRANCE]],\"\")","v":{"v":540,"d":"540 jours"}}]
[null,"ÉLÉMENT0021","imprimante laser","Employé 7",{"$f":"TODAY()-18","v":"2012-11-04"},{"$f":"IF(tblInventaireÉquipement[[#This Row],[DATE DE DÉLIVRANCE]]<>\"\",TODAY()-tblInventaireÉquipement[[#This Row],[DATE DE DÉLIVRANCE]],\"\")","v":{"v":18,"d":"18 jours"}}]
[null,"ÉLÉMENT0022","ordinateur portable","Employé 8",{"$f":"TODAY()-283","v":"2012-02-13"},{"$f":"IF(tblInventaireÉquipement[[#This Row],[DATE DE DÉLIVRANCE]]<>\"\",TODAY()-tblInventaireÉquipement[[#This Row],[DATE DE DÉLIVRANCE]],\"\")","v":{"v":283,"d":"283 jours"}}]
[null,"ÉLÉMENT0023","papier à lettres","Employé 9",{"$f":"TODAY()-479","v":"2011-08-01"},{"$f":"IF(tblInventaireÉquipement[[#This Row],[DATE DE DÉLIVRANCE]]<>\"\",TODAY()-tblInventaireÉquipement[[#This Row],[DATE DE DÉLIVRANCE]],\"\")","v":{"v":479,"d":"479 jours"}}]
[null,"ÉLÉMENT0024","imprimante laser","Employé 19",{"$f":"TODAY()-355","v":"2011-12-03"},{"$f":"IF(tblInventaireÉquipement[[#This Row],[DATE DE DÉLIVRANCE]]<>\"\",TODAY()-tblInventaireÉquipement[[#This Row],[DATE DE DÉLIVRANCE]],\"\")","v":{"v":355,"d":"355 jours"}}]
[null,"ÉLÉMENT0025","table","Employé 7",{"$f":"TODAY()-28","v":"2012-10-25"},{"$f":"IF(tblInventaireÉquipement[[#This Row],[DATE DE DÉLIVRANCE]]<>\"\",TODAY()-tblInventaireÉquipement[[#This Row],[DATE DE DÉLIVRANCE]],\"\")","v":{"v":28,"d":"28 jours"}}]
[null,"ÉLÉMENT0026","tableau blanc","Employé 8",{"$f":"TODAY()-28","v":"2012-10-25"},{"$f":"IF(tblInventaireÉquipement[[#This Row],[DATE DE DÉLIVRANCE]]<>\"\",TODAY()-tblInventaireÉquipement[[#This Row],[DATE DE DÉLIVRANCE]],\"\")","v":{"v":28,"d":"28 jours"}}]
[null,"ÉLÉMENT0027","ordinateur portable","Employé 19",{"$f":"TODAY()-736","v":"2010-11-17"},{"$f":"IF(tblInventaireÉquipement[[#This Row],[DATE DE DÉLIVRANCE]]<>\"\",TODAY()-tblInventaireÉquipement[[#This Row],[DATE DE DÉLIVRANCE]],\"\")","v":{"v":736,"d":"736 jours"}}]
[null,"ÉLÉMENT0028","table","Employé 12",{"$f":"TODAY()-68","v":"2012-09-15"},{"$f":"IF(tblInventaireÉquipement[[#This Row],[DATE DE DÉLIVRANCE]]<>\"\",TODAY()-tblInventaireÉquipement[[#This Row],[DATE DE DÉLIVRANCE]],\"\")","v":{"v":68,"d":"68 jours"}}]
[null,"ÉLÉMENT0029","scanner","Employé 14",{"$f":"TODAY()-67","v":"2012-09-16"},{"$f":"IF(tblInventaireÉquipement[[#This Row],[DATE DE DÉLIVRANCE]]<>\"\",TODAY()-tblInventaireÉquipement[[#This Row],[DATE DE DÉLIVRANCE]],\"\")","v":{"v":67,"d":"67 jours"}}]
[null,"ÉLÉMENT0030","cafetière","Employé 3",{"$f":"TODAY()-149","v":"2012-06-26"},{"$f":"IF(tblInventaireÉquipement[[#This Row],[DATE DE DÉLIVRANCE]]<>\"\",TODAY()-tblInventaireÉquipement[[#This Row],[DATE DE DÉLIVRANCE]],\"\")","v":{"v":149,"d":"149 jours"}}]

{"sheet":"Paramètres","index":1,"n_rows":23,"n_cols":4,"rows_kept":23}
[]
[]
[null,"EMPLOYÉS",null,"ÉLÉMENTS"]
[null,"Employé 1",null,"chaise"]
[null,"Employé 2",null,"cafetière"]
[null,"Employé 3",null,"photocopieuse"]
[null,"Employé 4",null,"ordinateur de bureau"]
[null,"Employé 5",null,"chiffon à poussière (1 lot)"]
[null,"Employé 6",null,"écran supplémentaire"]
[null,"Employé 7",null,"imprimante à jet d’encre"]
[null,"Employé 8",null,"ordinateur portable"]
[null,"Employé 9",null,"imprimante laser"]
[null,"Employé 10",null,"feutres (3 boîtes)"]
[null,"Employé 11",null,"scanner"]
[null,"Employé 12",null,"papier à lettres"]
[null,"Employé 13",null,"table"]
[null,"Employé 14",null,"clé USB"]
[null,"Employé 15",null,"tableau blanc"]
[null,"Employé 16"]
[null,"Employé 17"]
[null,"Employé 18"]
[null,"Employé 19"]
[null,"Employé 20"]